fUSD/lending_fUSD_20260405
["ID","MTS","AMOUNT","RATE_DAILY","PERIOD"]
[419775524,1775371850654,-150.0,0.00015214,2]
[419775525,1775371850663,-150.0,0.00015214,2]
[419775526,1775371850673,-150.0,0.00015216,2]
[419775527,1775371850682,-150.0,0.00015217,2]
[419775528,1775371850691,-1000.0,0.0001522,2]
[419775529,1775371850700,-150.0,0.00015225,2]
[419775530,1775371850710,-1000.0,0.0001523,2]
[419775531,1775371850719,-150.0,0.0001523,2]
[419775532,1775371850728,-150.0,0.00015235,2]
[419775533,1775371850737,-150.0,0.00015242,2]
[419775534,1775371850746,-150.0,0.00015242,2]
[419775535,1775371850756,-150.0,0.00015242,2]
[419775536,1775371850765,-350.0,0.00015243,2]
[419775537,1775371850774,-150.0,0.00015247,2]
[419775538,1775371850783,-150.0,0.0001525,2]
[419775539,1775371850793,-150.0,0.00015251,2]
[419775540,1775371850802,-150.0,0.00015252,2]
[419775541,1775371850811,-150.0,0.00015253,2]
[419775542,1775371850820,-243.87,0.00015254,2]
[419775543,1775371850830,-500.0,0.00015254,2]
[419775544,1775371850839,-151.0,0.00015254,2]
[419775545,1775371850848,-1000.0,0.00015261,2]
[419775546,1775371850857,-150.0,0.00015267,2]
[419775547,1775371850867,-150.0,0.0001527,2]
[419775548,1775371850875,-150.0,0.0001527,2]
[419775549,1775371850884,-150.0,0.0001527,2]
[419775550,1775371850894,-150.0,0.00015271,2]
[419775551,1775371850903,-150.0,0.00015275,2]
[419775552,1775371850913,-150.0,0.00015278,2]
[419775553,1775371850922,-150.0,0.00015287,2]
[419775554,1775371850931,-150.0,0.00015291,2]
[419775555,1775371850940,-150.0,0.00015298,2]
[419775556,1775371850950,-150.0,0.00015298,2]
[419775557,1775371850960,-150.0,0.000153,2]
[419775558,1775371850969,-203.07790955,0.00015301,5]
[419775559,1775371850979,-150.0,0.00015304,2]
[419775560,1775371850988,-150.0,0.00015307,2]
[419775561,1775371850997,-500.0,0.00015309,2]
[419775562,1775371851007,-151.0,0.00015309,2]
[419775563,1775371851016,-150.0,0.0001531,2]
[419775564,1775371851025,-500.0,0.0001531,2]
[419775565,1775371851034,-14359.13513893,0.00015311,2]
[419775566,1775371851981,-2234.72688694,0.00015311,2]
[419775567,1775371851991,-150.0,0.00015311,2]
[419775568,1775371852001,-550.3,0.00015314,30]
[419775569,1775371852010,-150.0,0.00015314,2]
[419775570,1775371852020,-350.0,0.0001532,2]
[419775571,1775371852030,-150.0,0.00015322,2]
[419775572,1775371852040,-150.0,0.00015325,2]
[419775573,1775371852050,-150.0,0.00015326,2]
[419775574,1775371852059,-150.0,0.00015326,2]
[419775575,1775371852069,-150.0,0.00015326,2]
[419775576,1775371852079,-150.0,0.00015332,2]
[419775577,1775371852088,-150.0,0.00015333,2]
[419775578,1775371852099,-150.0,0.00015339,2]
[419775579,1775371852108,-150.0,0.00015341,2]
[419775580,1775371852118,-500.0,0.00015344,2]
[419775581,1775371852128,-624.84,0.00015344,2]
[419775582,1775371852137,-500.0,0.00015344,2]
[419775583,1775371852147,-500.0,0.00015344,2]
[419775584,1775371852156,-500.0,0.00015344,2]
[419775585,1775371852166,-500.0,0.00015344,2]
[419775586,1775371852176,-500.0,0.00015344,2]
[419775587,1775371852185,-500.4,0.00015344,2]
[419775588,1775371852194,-500.0,0.00015344,2]
[419775589,1775371852204,-500.0,0.00015344,2]
[419775590,1775371852214,-509.57,0.00015344,2]
[419775591,1775371852224,-150.0,0.0001535,2]
[419775592,1775371852234,-150.0,0.00015352,2]
[419775593,1775371852243,-150.0,0.00015354,2]
[419775594,1775371852253,-150.0,0.00015354,2]
[419775595,1775371852263,-150.0,0.00015357,2]
[419775596,1775371852273,-150.0,0.0001536,2]
[419775597,1775371852282,-500.0,0.00015364,2]
[419775598,1775371852292,-42.02456163,0.00015364,2]
[419775599,1775371852304,-108.97543837,0.00015364,2]
[419775600,1775371852314,-150.0,0.0001537,2]
[419775601,1775371852324,-150.0,0.00015372,2]
[419775602,1775371852334,-150.0,0.00015373,2]
[419775603,1775371852344,-150.0,0.00015374,2]
[419775604,1775371852354,-150.0,0.00015375,2]
[419775605,1775371852363,-150.0,0.00015382,2]
[419775606,1775371852374,-64.54546649,0.00015382,2]
[419775607,1775371852622,-13716.9396175,0.00010596,2]
[419775608,1775371852642,-14029.80278619,0.00010596,2]
[419775609,1775371852689,-12934.54482809,0.00010596,2]
[419775610,1775371852701,-3749.88529281,0.00010596,2]
[419775611,1775371853031,-869.78790501,0.00010596,2]
[419775612,1775371853044,-11167.569,0.00010596,2]
[419775613,1775371853337,-17340.23282277,0.00010596,2]
[419775614,1775371853680,-8.108e-05,0.00010596,2]
[419775615,1775371987802,352.692045,7.945e-05,2]
[419775616,1775372046897,169.0,7.945e-05,3]
[419775617,1775372048415,150.0,7.945e-05,3]
[419775619,1775372077485,150.0,9.733e-05,2]
[419775620,1775372107814,169.0,9.733e-05,3]
[419775621,1775372109020,161.0,9.733e-05,3]
[419775622,1775372125761,161.0,9.733e-05,3]
[419775633,1775372413295,161.0,9.733e-05,3]
[419775642,1775372705597,161.0,9.733e-05,3]
[419775644,1775372738806,-168.77647524,9.931e-05,2]
[419775645,1775372738832,-250.0,9.958e-05,2]
[419775646,1775372739148,596.59017957,9.878e-05,2]
[419775647,1775372807945,150.0,9.582e-05,2]
[419775648,1775372825544,500.0,9.9e-05,3]
[419775649,1775372825929,1100.0,0.0001,3]
[419775651,1775372972047,-2608.0,0.000103,3]
[419775652,1775372972078,-787.0,0.000105,5]
[419775655,1775373007822,161.0,9.733e-05,3]
[419775657,1775373014993,576.33,4.945e-05,2]
[419775658,1775373015182,576.33,5.206e-05,2]
[419775659,1775373015382,227.850255,5.466e-05,2]
[419775660,1775373015405,348.479745,5.466e-05,2]
[419775661,1775373015786,576.33,5.726e-05,2]
[419775662,1775373015983,576.33,5.987e-05,2]
[419775663,1775373016174,576.33,6.247e-05,2]
[419775664,1775373017353,576.33,6.507e-05,2]
[419775665,1775373017468,576.33,6.767e-05,2]
[419775666,1775373017507,576.33,7.028e-05,2]
[419775667,1775373017551,576.33,7.288e-05,2]
[419775668,1775373017592,576.33,7.548e-05,2]
[419775669,1775373017650,576.33,7.808e-05,2]
[419775670,1775373017687,576.33,8.069e-05,2]
[419775671,1775373017931,576.33,8.329e-05,2]
[419775672,1775373018375,576.33,8.589e-05,2]
[419775673,1775373018557,576.33,8.85e-05,2]
[419775674,1775373018912,576.33,9.11e-05,2]
[419775675,1775373019113,576.33,9.37e-05,2]
[419775676,1775373019301,576.33,9.63e-05,2]
[419775679,1775373031786,-1003.40982043,9.878e-05,2]
[419775680,1775373031796,-576.33,9.891e-05,2]
[419775681,1775373031807,-193.0,9.946e-05,2]
[419775682,1775373031816,-3541.4942326,9.946e-05,2]
[419775683,1775373031826,-150.0,0.00010013,2]
[419775684,1775373031838,-500.0,0.00010021,2]
[419775685,1775373031848,-300.0,0.0001003,2]
[419775686,1775373031859,-300.0,0.0001003,2]
[419775687,1775373031868,-1200.0,0.0001003,2]
[419775688,1775373031878,-300.0,0.00010031,2]
[419775689,1775373031887,-300.0,0.00010031,2]
[419775690,1775373031897,-200.0,0.00010031,2]
[419775692,1775373031906,-3706.198,0.00010032,2]
[419775693,1775373031916,-181.514,0.00010032,2]
[419775694,1775373031926,-5802.51,0.00010034,2]
[419775695,1775373031935,-499.52,0.00010034,2]
[419775696,1775373031947,-2688.3,0.00010281,2]
[419775697,1775373031957,-294.43199475,0.000104,2]
[419775698,1775373031967,-150.0,0.00010472,2]
[419775699,1775373031976,-500.0,0.00010473,2]
[419775700,1775373031986,-500.0,0.00010473,2]
[419775701,1775373031995,-500.0,0.00010473,2]
[419775702,1775373032005,-500.0,0.00010473,2]
[419775703,1775373032014,-500.37556055,0.00010473,2]
[419775704,1775373032024,-500.0,0.00010473,2]
[419775705,1775373032034,-501.03587191,0.00010473,2]
[419775706,1775373032043,-500.0,0.00010473,2]
[419775707,1775373032052,-500.99644893,0.00010473,2]
[419775708,1775373032062,-504.05506813,0.00010473,2]
[419775709,1775373032072,-504.16046887,0.00010473,2]
[419775710,1775373032081,-500.0,0.00010473,2]
[419775711,1775373032091,-381.14774159,0.00010473,2]
[419775712,1775373032100,-273.12261617,0.00010486,2]
[419775713,1775373032110,-151.0,0.0001049,2]
[419775714,1775373032120,-151.0,0.0001049,2]
[419775715,1775373032130,-151.0,0.0001049,2]
[419775716,1775373032139,-151.0,0.0001049,2]
[419775717,1775373032148,-151.0,0.0001049,2]
[419775718,1775373032158,-151.0,0.0001049,2]
[419775719,1775373032168,-151.0,0.0001049,2]
[419775720,1775373032178,-151.0,0.0001049,2]
[419775721,1775373032188,-151.0,0.0001049,2]
[419775722,1775373032198,-151.0,0.0001049,2]
[419775723,1775373032209,-173.04441609,0.0001049,2]
[419775724,1775373032218,-151.0,0.00010493,2]
[419775725,1775373032228,-151.0,0.00010493,2]
[419775726,1775373032238,-500.0,0.00010495,2]
[419775727,1775373032249,-356.55854417,0.00010495,2]
[419775728,1775373032259,-500.0,0.00010495,2]
[419775729,1775373032269,-500.0,0.00010495,2]
[419775730,1775373032278,-203.22566971,0.00010495,2]
[419775731,1775373032288,-500.0,0.00010495,2]
[419775732,1775373032298,-524.63785429,0.00010495,2]
[419775733,1775373032308,-263.11215901,0.00010495,2]
[419775734,1775373032318,-500.0,0.00010495,2]
[419775735,1775373032329,-500.0,0.00010495,2]
[419775736,1775373032339,-500.0,0.00010495,2]
[419775737,1775373032349,-500.0,0.00010495,2]
[419775738,1775373032358,-500.0,0.00010495,2]
[419775739,1775373032368,-500.0,0.00010495,2]
[419775740,1775373032378,-342.27759209,0.00010495,2]
[419775741,1775373032387,-500.0,0.00010495,2]
[419775742,1775373032398,-500.0,0.00010495,2]
[419775743,1775373032410,-500.0,0.00010495,2]
[419775744,1775373032420,-500.0,0.00010495,2]
[419775745,1775373032431,-500.0,0.00010495,2]
[419775746,1775373032442,-500.0,0.00010495,2]
[419775747,1775373032452,-500.0,0.00010495,2]
[419775748,1775373032462,-500.0,0.00010495,2]
[419775749,1775373032471,-500.0,0.00010495,2]
[419775750,1775373032481,-500.0,0.00010495,2]
[419775751,1775373032490,-500.0,0.00010495,2]
[419775752,1775373032499,-500.0,0.00010495,2]
[419775753,1775373032510,-500.0,0.00010495,2]
[419775754,1775373032519,-500.0,0.00010495,2]
[419775755,1775373032529,-500.0,0.00010495,2]
[419775756,1775373032539,-1263748.41547825,0.00010496,2]
[419775757,1775373032552,-123700.43833523,0.00010496,2]
[419775758,1775373032564,-112551.14618652,0.00010496,2]
[419775759,1775373032574,-4746.0,0.000105,5]
[419775760,1775373032583,-499.52,0.00010591,2]
[419775761,1775373032593,-36963.05873906,0.000107,2]
[419775762,1775373032605,-157528.95241667,0.000107,2]
[419775763,1775373032617,-5001.28675624,0.000107,2]
[419775764,1775373032628,-1430.66631438,0.000107,2]
[419775765,1775373032639,-378.35139607,0.000107,2]
[419775766,1775373032651,-1661.05985731,0.000107,2]
[419775770,1775373037761,-3595.2502192,0.000102,2]
[419775771,1775373038045,-23315.17095137,0.000102,2]
[419775772,1775373038058,-22000.0,0.000102,2]
[419775773,1775373038086,-396.66946993,0.000102,2]
[419775785,1775373040530,-5876.65649635,0.000102,2]
[419775786,1775373040664,-354.615,0.000102,2]
[419775787,1775373040680,-430.35,0.000102,2]
[419775789,1775373040742,-129.50435531,0.000102,2]
[419775790,1775373040857,-1027697.68404184,0.000102,2]
[419775820,1775373045645,-716.10715894,0.000102,2]
[419775821,1775373045657,-324.56800026,0.000102,2]
[419775822,1775373045668,-444.54016,0.000102,2]
[419775823,1775373045679,-888.57040178,0.000102,2]
[419775824,1775373045691,-372.44794002,0.000102,2]
[419775825,1775373045702,-623.06520001,0.000102,2]
[419775929,1775373080344,430.250255,9.778e-05,2]
[419775930,1775373080368,69.749745,9.778e-05,2]
[419775936,1775373311543,161.0,9.778e-05,3]
[419775961,1775373576705,300.0,0.0001,3]
[419775962,1775373607484,162.0,9.778e-05,3]
[419775963,1775373614833,1852.42,9.655e-05,2]
[419775967,1775373698411,500.0,9.79e-05,2]
[419775968,1775373709263,3096.82,9.515e-05,2]
[419775973,1775373911106,162.0,9.778e-05,3]
[419775974,1775373915345,173.54,7.552e-05,2]
[419775975,1775373937881,166.66,9.722e-05,2]
[419775977,1775373966247,1500.0,9.406e-05,2]
[419775978,1775374028440,800.0,9.9e-05,3]
[419775979,1775374029131,1600.0,0.0001,3]
[419775980,1775374135049,2000.0,9.388e-05,2]
[419775981,1775374205444,162.0,9.778e-05,3]
[419775986,1775374231873,-481.0,9.89e-05,2]
[419775987,1775374231883,-1200.0,9.89e-05,2]
[419775988,1775374231892,-150.0,9.89e-05,2]
[419775989,1775374231901,-1950.0,9.89e-05,2]
[419775990,1775374231910,-41679.45,9.891e-05,2]
[419775991,1775374231920,-500.0,9.973e-05,2]
[419775992,1775374231929,-500.0,9.973e-05,2]
[419775993,1775374231939,-500.0,9.973e-05,2]
[419775994,1775374231949,-500.0,9.973e-05,2]
[419775995,1775374231959,-500.0,9.973e-05,2]
[419775996,1775374231968,-500.0,9.973e-05,2]
[419775997,1775374231977,-500.0,9.973e-05,2]
[419775998,1775374231986,-500.17887763,9.973e-05,2]
[419775999,1775374231995,-500.11329592,9.973e-05,2]
[419776000,1775374232005,-500.0,9.973e-05,2]
[419776001,1775374232014,-500.0,9.973e-05,2]
[419776002,1775374232024,-879.65842586,9.999e-05,2]
[419776003,1775374232033,-156309.65904545,9.999e-05,2]
[419776004,1775374232044,-100545.27212952,9.999e-05,2]
[419776005,1775374232055,-1254.41808677,9.999e-05,2]
[419776007,1775374237928,-1124.01112908,9.891e-05,2]
[419776008,1775374238042,-37238.42799887,9.891e-05,2]
[419776009,1775374238051,-467.89213042,9.998e-05,2]
[419776010,1775374238060,-500.0,9.998e-05,2]
[419776011,1775374238069,-222.09173171,9.998e-05,2]
[419776012,1775374238079,-500.0,9.998e-05,2]
[419776013,1775374238088,-500.0,9.998e-05,2]
[419776014,1775374238097,-344.57579654,9.998e-05,2]
[419776015,1775374238106,-157.51248621,9.998e-05,2]
[419776016,1775374238115,-500.0,9.998e-05,2]
[419776017,1775374238124,-500.0,9.998e-05,2]
[419776018,1775374238134,-500.0,9.998e-05,2]
[419776019,1775374238143,-500.0,9.998e-05,2]
[419776020,1775374238152,-500.0,9.998e-05,2]
[419776021,1775374238161,-500.0,9.998e-05,2]
[419776022,1775374238170,-500.0,9.998e-05,2]
[419776023,1775374238179,-311.33365767,9.998e-05,2]
[419776024,1775374238189,-500.0,9.998e-05,2]
[419776025,1775374238198,-500.0,9.998e-05,2]
[419776026,1775374238207,-500.0,9.998e-05,2]
[419776027,1775374238215,-500.0,9.998e-05,2]
[419776028,1775374238224,-500.0,9.998e-05,2]
[419776029,1775374238234,-640735.47280485,9.999e-05,2]
[419776045,1775374240243,-11907.3341972,9.999e-05,2]
[419776047,1775374240255,-415.95125705,9.999e-05,2]
[419776062,1775374241785,-588831.89247916,9.999e-05,2]
[419776063,1775374241795,-1000.0,0.0001,2]
[419776064,1775374241804,-33032.4137,0.0001,2]
[419776065,1775374241814,-353.9306999,0.0001,2]
[419776066,1775374241823,-2325.1708,0.0001,2]
[419776067,1775374241832,-666.62460364,0.0001,2]
[419776068,1775374241842,-82428.8176,0.0001,2]
[419776069,1775374241852,-166.66,0.00010043,2]
[419776070,1775374241861,-2500.0,0.00010091,2]
[419776071,1775374241871,-200.0,0.000101,2]
[419776072,1775374241880,-5192.0867,0.000101,2]
[419776073,1775374241890,-500.0,0.00010173,2]
[419776074,1775374241899,-500.0,0.00010173,2]
[419776075,1775374241909,-348.90078064,0.00010173,2]
[419776076,1775374241918,-19997.33596647,0.00010191,2]
[419776077,1775374241928,-151.0,0.00010197,2]
[419776078,1775374241937,-151.0,0.00010197,2]
[419776079,1775374241946,-3680.84466897,0.00010242,2]
[419776080,1775374241956,-613.4741115,0.00010334,2]
[419776081,1775374241966,-166.66,0.00010364,2]
[419776082,1775374241975,-500.0,0.00010373,2]
[419776083,1775374241984,-500.0,0.0001039,2]
[419776084,1775374241993,-500.0,0.0001039,2]
[419776085,1775374242003,-500.0,0.0001039,2]
[419776086,1775374242013,-500.0,0.0001039,2]
[419776087,1775374242022,-500.0,0.0001039,2]
[419776088,1775374242031,-500.0,0.0001039,2]
[419776089,1775374242040,-500.0,0.0001039,2]
[419776090,1775374242050,-500.0,0.0001039,2]
[419776091,1775374242059,-500.0,0.0001039,2]
[419776092,1775374242068,-500.0,0.0001039,2]
[419776093,1775374242077,-500.0,0.0001039,2]
[419776094,1775374242086,-200.0,0.0001039,2]
[419776095,1775374242096,-500.0,0.0001039,2]
[419776096,1775374242106,-151.0,0.0001039,2]
[419776097,1775374242115,-500.0,0.0001039,2]
[419776098,1775374242124,-151.0,0.0001039,2]
[419776099,1775374242134,-500.0,0.0001039,2]
[419776100,1775374242143,-151.0,0.0001039,2]
[419776101,1775374242152,-500.0,0.0001039,2]
[419776102,1775374242162,-151.0,0.0001039,2]
[419776103,1775374242171,-500.0,0.0001039,2]
[419776104,1775374242180,-151.0,0.0001039,2]
[419776105,1775374242190,-425.91839491,0.0001039,2]
[419776106,1775374242199,-151.0,0.0001039,2]
[419776107,1775374242209,-151.0,0.0001039,2]
[419776108,1775374242218,-151.0,0.0001039,2]
[419776109,1775374242227,-151.0,0.0001039,2]
[419776110,1775374242237,-151.0,0.0001039,2]
[419776111,1775374242246,-151.0,0.0001039,2]
[419776112,1775374242255,-151.0,0.0001039,2]
[419776113,1775374242264,-151.0,0.0001039,2]
[419776114,1775374242273,-151.0,0.0001039,2]
[419776115,1775374242283,-151.0,0.0001039,2]
[419776116,1775374242292,-151.0,0.0001039,2]
[419776117,1775374242301,-151.0,0.0001039,2]
[419776118,1775374242310,-151.0,0.0001039,2]
[419776119,1775374242318,-151.0,0.0001039,2]
[419776120,1775374242326,-151.0,0.0001039,2]
[419776121,1775374242335,-1386.78395259,0.0001039,2]
[419776122,1775374242344,-151.0,0.0001039,2]
[419776123,1775374242353,-151.0,0.0001039,2]
[419776124,1775374242362,-151.0,0.0001039,2]
[419776125,1775374242371,-151.0,0.0001039,2]
[419776126,1775374242380,-1219.14,0.0001039,2]
[419776127,1775374242390,-151.0,0.00010393,2]
[419776128,1775374242398,-394.0610441,0.00010396,2]
[419776129,1775374242407,-489496.1972991,0.00010396,2]
[419776130,1775374242416,-1182.8794533,0.00010396,2]
[419776131,1775374242425,-1486.83,0.0001043,2]
[419776132,1775374242434,-613.4741115,0.00010436,2]
[419776133,1775374242443,-1357.99078211,0.00010473,2]
[419776134,1775374242452,-1105.5079588,0.00010473,2]
[419776135,1775374242461,-1516.0,0.00010505,2]
[419776136,1775374242470,-457.0,0.0001052,2]
[419776137,1775374242479,-1000.0,0.00010521,2]
[419776138,1775374242488,-1000.0,0.00010521,2]
[419776139,1775374242497,-1000.0,0.00010521,2]
[419776140,1775374242506,-1000.0,0.00010521,2]
[419776141,1775374242516,-1000.0,0.00010521,2]
[419776142,1775374242525,-1000.0,0.00010521,2]
[419776143,1775374242535,-1058.0,0.00010526,2]
[419776144,1775374242544,-349.0,0.00010534,2]
[419776145,1775374242553,-613.4741115,0.00010539,2]
[419776146,1775374242562,-640.0,0.00010555,2]
[419776147,1775374242571,-1828.19580111,0.00010559,2]
[419776148,1775374242581,-2000.0,0.00010561,2]
[419776149,1775374242590,-790.0,0.00010579,2]
[419776150,1775374242599,-97697.2091726,0.000106,2]
[419776151,1775374242608,-274.57636762,0.000106,2]
[419776152,1775374242617,-2947.22249095,0.000106,2]
[419776153,1775374242626,-1219.14,0.00010664,2]
[419776154,1775374242635,-6492.07226036,0.00010667,2]
[419776155,1775374242644,-166.66,0.00010684,2]
[419776156,1775374242653,-151.0,0.00010697,2]
[419776157,1775374242662,-353799.46587464,0.000107,2]
[419776159,1775374242671,-200.0,0.000107,2]
[419776161,1775374242680,-200.0,0.000107,2]
[419776162,1775374242688,-151.0,0.000107,2]
[419776163,1775374242697,-151.0,0.000107,2]
[419776164,1775374242706,-1000.0,0.000107,2]
[419776165,1775374242715,-2000.0,0.000107,2]
[419776166,1775374242724,-200.0,0.000107,2]
[419776167,1775374242733,-151.0,0.000107,2]
[419776168,1775374242742,-151.0,0.000107,2]
[419776169,1775374242751,-151.0,0.000107,2]
[419776170,1775374242760,-151.0,0.000107,2]
[419776171,1775374242769,-851.442194,0.000107,2]
[419776172,1775374242779,-851.442194,0.000107,2]
[419776173,1775374242788,-851.442194,0.000107,2]
[419776175,1775374242797,-851.442194,0.000107,2]
[419776176,1775374242807,-500.0,0.000107,2]
[419776177,1775374242816,-151.0,0.000107,2]
[419776178,1775374242825,-151.0,0.000107,2]
[419776179,1775374242835,-151.0,0.000107,2]
[419776180,1775374242844,-153.964346,0.000107,2]
[419776181,1775374242852,-553.958559,0.000107,2]
[419776182,1775374242862,-553.958559,0.000107,2]
[419776183,1775374242871,-553.958559,0.000107,2]
[419776184,1775374242880,-553.958559,0.000107,2]
[419776185,1775374242889,-151.0,0.000107,2]
[419776186,1775374242898,-151.0,0.000107,2]
[419776187,1775374242907,-200.0,0.000107,2]
[419776188,1775374242916,-1000.0,0.00010721,2]
[419776189,1775374242925,-500.61358609,0.00010721,2]
[419776190,1775374242934,-150.0,0.00010728,2]
[419776191,1775374242943,-150.0,0.00010728,2]
[419776192,1775374242952,-151.53,0.00010772,2]
[419776193,1775374242962,-362.45,0.00010798,2]
[419776194,1775374242971,-200.0,0.00010807,2]
[419776195,1775374242980,-200.0,0.00010807,2]
[419776196,1775374242989,-1326.87745236,0.00010807,2]
[419776197,1775374242999,-200.0,0.00010807,2]
[419776198,1775374243008,-200.0,0.00010807,2]
[419776199,1775374243017,-151.0,0.00010863,2]
[419776200,1775374243027,-250.0,0.00010878,2]
[419776201,1775374243037,-1680.0,0.00010879,2]
[419776202,1775374243046,-255.0,0.00010879,2]
[419776203,1775374243055,-3372.75255751,0.00010879,2]
[419776204,1775374243065,-250.0,0.00010879,2]
[419776205,1775374243075,-5000.0,0.00010879,2]
[419776206,1775374243085,-252.53960914,0.00010879,2]
[419776207,1775374243094,-5000.0,0.00010879,2]
[419776208,1775374243103,-193.0,0.00010879,2]
[419776209,1775374243112,-157.0,0.000109,2]
[419776210,1775374243123,-157.0,0.000109,2]
[419776211,1775374243132,-2500.0,0.000109,3]
[419776212,1775374243142,-200.0,0.00010915,2]
[419776213,1775374243152,-200.0,0.00010915,2]
[419776214,1775374243161,-1000.0,0.00010921,2]
[419776215,1775374243170,-200.0,0.00010938,2]
[419776216,1775374243180,-1438.09495884,0.00010938,2]
[419776217,1775374243189,-1219.14,0.00010938,2]
[419776218,1775374243199,-418.33,0.00010953,2]
[419776219,1775374243208,-502.00598187,0.00010959,2]
[419776220,1775374243217,-150.0,0.00010959,2]
[419776221,1775374243227,-151.0,0.00010959,2]
[419776222,1775374243236,-151.0,0.00010959,2]
[419776223,1775374243246,-151.0,0.00010959,2]
[419776224,1775374243255,-156.571505,0.00010959,2]
[419776225,1775374243264,-156.571505,0.00010959,2]
[419776226,1775374243274,-166.66,0.00011005,2]
[419776227,1775374243283,-200.0,0.00011024,2]
[419776228,1775374243293,-200.0,0.00011024,2]
[419776229,1775374243302,-1500.0,0.00011068,2]
[419776230,1775374243311,-341.5818023,0.00011068,2]
[419776231,1775374243321,-1500.0,0.00011068,2]
[419776232,1775374243330,-1500.0,0.00011068,2]
[419776233,1775374243339,-1500.0,0.00011068,2]
[419776234,1775374243348,-500.0,0.00011068,2]
[419776235,1775374243358,-41239.67478618,0.00011099,2]
[419776236,1775374243367,-41239.67478614,0.00011099,2]
[419776237,1775374243376,-41239.67478614,0.00011099,2]
[419776238,1775374243386,-38812.82348846,0.00011099,2]
[419776239,1775374243395,-38812.82348841,0.00011099,2]
[419776240,1775374243404,-1600.0,0.00011113,2]
[419776241,1775374243414,-200.0,0.00011134,2]
[419776242,1775374243424,-499.52,0.00011148,2]
[419776243,1775374243434,-38812.82348841,0.00011165,2]
[419776244,1775374243443,-36501.6658983,0.000112,2]
[419776245,1775374243453,-1219.14,0.00011212,2]
[419776246,1775374243463,-1500.0,0.00011268,2]
[419776247,1775374243472,-166.66,0.00011326,2]
[419776249,1775374243482,-500.0,0.0001137,2]
[419776250,1775374243491,-500.0,0.00011397,2]
[419776252,1775374243500,-608.3186174,0.00011468,2]
[419776254,1775374243509,-200.0,0.00011486,2]
[419776256,1775374243518,-1491.30447232,0.00011486,2]
[419776257,1775374243528,-1219.14,0.00011486,2]
[419776259,1775374243537,-602.757728,0.00011512,2]
[419776261,1775374243547,-14365.0,0.00011562,2]
[419776263,1775374243556,-151.0,0.00011579,2]
[419776265,1775374243565,-151.0,0.00011579,2]
[419776266,1775374243574,-151.0,0.00011582,2]
[419776268,1775374243583,-151.0,0.00011582,2]
[419776270,1775374243593,-151.0,0.00011582,2]
[419776272,1775374243602,-151.0,0.00011582,2]
[419776274,1775374243613,-151.0,0.00011582,2]
[419776275,1775374243623,-151.0,0.00011582,2]
[419776276,1775374243632,-851.442194,0.00011582,2]
[419776278,1775374243641,-851.442194,0.00011582,2]
[419776280,1775374243650,-851.442194,0.00011582,2]
[419776282,1775374243660,-851.442194,0.00011582,2]
[419776284,1775374243668,-151.0,0.00011582,2]
[419776286,1775374243678,-151.0,0.00011582,2]
[419776288,1775374243687,-151.0,0.00011582,2]
[419776290,1775374243696,-553.958559,0.00011582,2]
[419776291,1775374243706,-553.958559,0.00011582,2]